[Event "*** Titled Tuesday Blitz"]
[Site "Chess.com"]
[Date "2020.04.28"]
[Round "3"]
[White "martinique24"]
[Black "Joseph_Truelson"]
[Result "1-0"]
[WhiteElo "2436"]
[BlackElo "2216"]
[TimeControl "180+1"]
[EndTime "10:26:47 PDT"]
[Termination "martinique24 won by resignation"]

1. e4 {[%clk 0:03:00.9]} 1... e5 {[%clk 0:02:59.9]} 2. Nf3 {[%clk 0:02:55.2]}
2... Nf6 {[%clk 0:02:59.2]} 3. Nxe5 {[%clk 0:02:54.4]} 3... d6 {[%clk
0:02:59.5]} 4. Nf3 {[%clk 0:02:54.5]} 4... Nxe4 {[%clk 0:02:59.8]} 5. Nc3 {[%clk
0:02:54.3]} 5... Nxc3 {[%clk 0:02:58.6]} 6. dxc3 {[%clk 0:02:54.1]} 6... Be7
{[%clk 0:02:59.2]} 7. Be3 {[%clk 0:02:52.2]} 7... Nd7 {[%clk 0:02:54.2]} 8. Qd2
{[%clk 0:02:50.9]} 8... a6 {[%clk 0:02:50.4]} 9. O-O-O {[%clk 0:02:50.4]} 9...
b5 {[%clk 0:02:50.5]} 10. Kb1 {[%clk 0:02:47.2]} 10... Bb7 {[%clk 0:02:48.4]}
11. Nd4 {[%clk 0:02:44.3]} 11... Ne5 {[%clk 0:02:39]} 12. Nf5 {[%clk 0:02:41.9]}
12... Bf6 {[%clk 0:02:37.7]} 13. Bf4 {[%clk 0:02:35]} 13... O-O {[%clk
0:02:29.3]} 14. f3 {[%clk 0:02:28.1]} 14... Qd7 {[%clk 0:02:14.3]} 15. Bd3
{[%clk 0:02:17.9]} 15... a5 {[%clk 0:01:51.7]} 16. Be4 {[%clk 0:02:16.1]} 16...
Bxe4 {[%clk 0:01:41.5]} 17. fxe4 {[%clk 0:02:13.6]} 17... b4 {[%clk 0:01:42.1]}
18. Bxe5 {[%clk 0:02:03.8]} 18... Bxe5 {[%clk 0:01:36.5]} 19. c4 {[%clk
0:02:02.3]} 19... a4 {[%clk 0:01:22.5]} 20. Qd5 {[%clk 0:01:59.1]} 20... b3
{[%clk 0:01:19.4]} 21. Qxe5 {[%clk 0:01:54.6]} 1-0

[Event "*** Titled Tuesday Blitz"]
[Site "Chess.com"]
[Date "2020.04.28"]
[Round "3"]
[White "mamey78"]
[Black "manuellarrea"]
[Result "1-0"]
[WhiteElo "2391"]
[BlackElo "2181"]
[TimeControl "180+1"]
[EndTime "10:26:57 PDT"]
[Termination "mamey78 won by resignation"]

1. e4 {[%clk 0:03:00.9]} 1... c5 {[%clk 0:02:58.5]} 2. Nf3 {[%clk 0:03:00.3]}
2... Nc6 {[%clk 0:02:58]} 3. c3 {[%clk 0:02:59.8]} 3... Nf6 {[%clk 0:02:56.1]}
4. e5 {[%clk 0:02:57.6]} 4... Nd5 {[%clk 0:02:56.2]} 5. d4 {[%clk 0:02:58]} 5...
cxd4 {[%clk 0:02:55.5]} 6. Bc4 {[%clk 0:02:57.8]} 6... e6 {[%clk 0:02:54.9]} 7.
cxd4 {[%clk 0:02:57.1]} 7... d6 {[%clk 0:02:55.2]} 8. O-O {[%clk 0:02:56.5]}
8... Be7 {[%clk 0:02:55.7]} 9. Qe2 {[%clk 0:02:56.6]} 9... O-O {[%clk
0:02:54.9]} 10. Bd2 {[%clk 0:02:56.3]} 10... Qc7 {[%clk 0:02:54.4]} 11. Nc3
{[%clk 0:02:53.9]} 11... Nxc3 {[%clk 0:02:48.7]} 12. Bxc3 {[%clk 0:02:54.8]}
12... dxe5 {[%clk 0:02:48.7]} 13. dxe5 {[%clk 0:02:54]} 13... b6 {[%clk
0:02:43.6]} 14. Qe4 {[%clk 0:02:36]} 14... Bb7 {[%clk 0:02:37.5]} 15. Bd3 {[%clk
0:02:15]} 15... g6 {[%clk 0:02:36.3]} 16. Qg4 {[%clk 0:02:14.4]} 16... Rfd8
{[%clk 0:02:27.8]} 17. Be4 {[%clk 0:02:09.4]} 17... Bf8 {[%clk 0:02:24.6]} 18.
h4 {[%clk 0:02:08.3]} 18... Bg7 {[%clk 0:02:21.1]} 19. h5 {[%clk 0:01:59.2]}
19... Rab8 {[%clk 0:02:11.1]} 20. Rfe1 {[%clk 0:01:54.5]} 20... Ne7 {[%clk
0:02:02.6]} 21. hxg6 {[%clk 0:01:51.6]} 21... hxg6 {[%clk 0:01:58.7]} 22. Ng5
{[%clk 0:01:45.9]} 22... Bxe4 {[%clk 0:01:44.9]} 23. Rxe4 {[%clk 0:01:36.6]}
23... Nf5 {[%clk 0:01:24.1]} 24. Qh3 {[%clk 0:01:32.3]} 24... Rd5 {[%clk
0:01:18.4]} 25. Qh7+ {[%clk 0:01:30]} 25... Kf8 {[%clk 0:01:17.9]} 26. Bb4+
{[%clk 0:01:29.3]} 26... Ne7 {[%clk 0:01:11.2]} 27. Rf4 {[%clk 0:01:19.6]} 1-0

[Event "*** Titled Tuesday Blitz"]
[Site "Chess.com"]
[Date "2020.04.28"]
[Round "3"]
[White "Joshukid"]
[Black "crazy_but_lazy"]
[Result "1-0"]
[WhiteElo "2559"]
[BlackElo "2355"]
[TimeControl "180+1"]
[EndTime "10:27:02 PDT"]
[Termination "Joshukid won by resignation"]

1. Nf3 {[%clk 0:03:00.9]} 1... Nf6 {[%clk 0:02:57.4]} 2. c4 {[%clk 0:03:00.3]}
2... e6 {[%clk 0:02:55.3]} 3. g3 {[%clk 0:02:59.8]} 3... b6 {[%clk 0:02:55.5]}
4. Bg2 {[%clk 0:02:59.2]} 4... Bb7 {[%clk 0:02:55.6]} 5. O-O {[%clk 0:02:56.9]}
5... Be7 {[%clk 0:02:55.3]} 6. b3 {[%clk 0:02:47.2]} 6... O-O {[%clk 0:02:54.2]}
7. Nc3 {[%clk 0:02:40]} 7... c5 {[%clk 0:02:45]} 8. d4 {[%clk 0:02:29.5]} 8...
cxd4 {[%clk 0:02:43.9]} 9. Qxd4 {[%clk 0:02:28.9]} 9... Nc6 {[%clk 0:02:31.7]}
10. Qf4 {[%clk 0:02:23.6]} 10... Qb8 {[%clk 0:02:02.8]} 11. Qxb8 {[%clk
0:02:22.9]} 11... Raxb8 {[%clk 0:02:00.9]} 12. Bf4 {[%clk 0:02:23.5]} 12... Rbd8
{[%clk 0:01:10.3]} 13. Rfd1 {[%clk 0:02:16.2]} 13... a6 {[%clk 0:01:02.4]} 14.
Bc7 {[%clk 0:02:13.2]} 14... Rc8 {[%clk 0:01:01.4]} 15. Bxb6 {[%clk 0:02:13.4]}
15... Bb4 {[%clk 0:00:43.7]} 16. Na4 {[%clk 0:01:59.7]} 16... d5 {[%clk
0:00:42.9]} 17. Bc5 {[%clk 0:01:57.6]} 17... Rfd8 {[%clk 0:00:33]} 18. Bxb4
{[%clk 0:01:47.1]} 18... Nxb4 {[%clk 0:00:33.2]} 19. c5 {[%clk 0:01:47.8]} 19...
Bc6 {[%clk 0:00:25.6]} 20. Nb6 {[%clk 0:01:46.3]} 20... Rc7 {[%clk 0:00:23.2]}
21. a3 {[%clk 0:01:45.4]} 21... Nc2 {[%clk 0:00:18.2]} 22. Ra2 {[%clk 0:01:44]}
1-0

[Event "*** Titled Tuesday Blitz"]
[Site "Chess.com"]
[Date "2020.04.28"]
[Round "3"]
[White "Man-Chuk"]
[Black "keepitcool9499"]
[Result "1-0"]
[WhiteElo "2718"]
[BlackElo "2456"]
[TimeControl "180+1"]
[EndTime "10:27:08 PDT"]
[Termination "Man-Chuk won by resignation"]

1. c4 {[%clk 0:02:54.3]} 1... e6 {[%clk 0:02:59.6]} 2. Nc3 {[%clk 0:02:53.8]}
2... Nf6 {[%clk 0:03:00]} 3. e4 {[%clk 0:02:51.9]} 3... d5 {[%clk 0:03:00.3]} 4.
cxd5 {[%clk 0:02:51.4]} 4... exd5 {[%clk 0:03:00.3]} 5. e5 {[%clk 0:02:52.3]}
5... Nfd7 {[%clk 0:02:59]} 6. d4 {[%clk 0:02:49]} 6... Bb4 {[%clk 0:02:56.9]} 7.
Nf3 {[%clk 0:02:39.9]} 7... O-O {[%clk 0:02:56]} 8. Bd3 {[%clk 0:02:39.4]} 8...
f5 {[%clk 0:02:49.9]} 9. O-O {[%clk 0:02:37.2]} 9... Bxc3 {[%clk 0:02:48]} 10.
bxc3 {[%clk 0:02:38.1]} 10... c5 {[%clk 0:02:45]} 11. Ng5 {[%clk 0:02:27.6]}
11... Qe7 {[%clk 0:02:37.4]} 12. Nh3 {[%clk 0:02:21.8]} 12... Nc6 {[%clk
0:02:34.8]} 13. Nf4 {[%clk 0:02:15.3]} 13... Nb6 {[%clk 0:02:29.7]} 14. Ba3
{[%clk 0:02:13.9]} 14... Qg5 {[%clk 0:02:15.6]} 15. Nh3 {[%clk 0:02:11.2]} 15...
Qg4 {[%clk 0:02:13.8]} 16. Bxc5 {[%clk 0:02:07.5]} 16... Rd8 {[%clk 0:02:05.5]}
17. Qxg4 {[%clk 0:01:59.4]} 17... fxg4 {[%clk 0:02:05.3]} 18. Nf4 {[%clk
0:01:59.4]} 18... Na4 {[%clk 0:02:00.9]} 19. Bd6 {[%clk 0:01:43]} 19... Nxc3
{[%clk 0:01:59.4]} 20. Rfc1 {[%clk 0:01:42.3]} 20... Ne4 {[%clk 0:01:57.4]} 21.
Bxe4 {[%clk 0:01:40.3]} 21... dxe4 {[%clk 0:01:58.3]} 22. d5 {[%clk 0:01:37.8]}
22... Nd4 {[%clk 0:01:58.4]} 23. Rc4 {[%clk 0:01:19.6]} 23... Nf5 {[%clk
0:01:56.9]} 24. Bc7 {[%clk 0:01:16.5]} 24... Re8 {[%clk 0:01:38.6]} 25. Rxe4
{[%clk 0:01:15.9]} 25... Bd7 {[%clk 0:01:28.3]} 26. e6 {[%clk 0:01:12.4]} 26...
Bb5 {[%clk 0:01:22.6]} 27. a4 {[%clk 0:01:11.8]} 27... Ba6 {[%clk 0:01:18.5]}
28. d6 {[%clk 0:01:11.5]} 1-0

[Event "*** Titled Tuesday Blitz"]
[Site "Chess.com"]
[Date "2020.04.28"]
[Round "3"]
[White "MacDaddyMac"]
[Black "Luibov_AN"]
[Result "1-0"]
[WhiteElo "2325"]
[BlackElo "2106"]
[TimeControl "180+1"]
[EndTime "10:27:08 PDT"]
[Termination "MacDaddyMac won by resignation"]

1. e4 {[%clk 0:03:00.9]} 1... g6 {[%clk 0:02:59.7]} 2. d4 {[%clk 0:03:00]} 2...
Bg7 {[%clk 0:02:56.1]} 3. Nf3 {[%clk 0:02:59.5]} 3... c5 {[%clk 0:02:56]} 4. c3
{[%clk 0:02:59.4]} 4... cxd4 {[%clk 0:02:55.2]} 5. cxd4 {[%clk 0:02:59.5]} 5...
Nc6 {[%clk 0:02:55.3]} 6. Nc3 {[%clk 0:02:48.7]} 6... Qb6 {[%clk 0:02:54.3]} 7.
d5 {[%clk 0:02:47.9]} 7... Nb8 {[%clk 0:02:53.5]} 8. Bc4 {[%clk 0:02:45.2]} 8...
d6 {[%clk 0:02:49.6]} 9. O-O {[%clk 0:02:42.8]} 9... a6 {[%clk 0:02:49.4]} 10.
Rb1 {[%clk 0:02:40.5]} 10... Bxc3 {[%clk 0:02:37.7]} 11. bxc3 {[%clk 0:02:25]}
11... Qxb1 {[%clk 0:02:32.6]} 12. Qd4 {[%clk 0:02:25]} 12... f6 {[%clk
0:02:19.3]} 13. Ba3 {[%clk 0:02:09.1]} 13... Qc2 {[%clk 0:02:12.5]} 14. Bb3
{[%clk 0:02:00.6]} 14... Qe2 {[%clk 0:02:10.6]} 15. Re1 {[%clk 0:01:45.5]} 15...
Qxe1+ {[%clk 0:02:04.5]} 16. Nxe1 {[%clk 0:01:46.4]} 16... Nd7 {[%clk
0:01:55.5]} 17. f4 {[%clk 0:01:44.9]} 17... Nh6 {[%clk 0:01:54.8]} 18. Nd3
{[%clk 0:01:35.2]} 18... Nf7 {[%clk 0:01:53.3]} 19. c4 {[%clk 0:01:33]} 19...
O-O {[%clk 0:01:50.4]} 20. c5 {[%clk 0:01:32.8]} 20... dxc5 {[%clk 0:01:34.5]}
21. Nxc5 {[%clk 0:01:33.7]} 21... Nxc5 {[%clk 0:01:34.5]} 22. Bxc5 {[%clk
0:01:32.6]} 22... Re8 {[%clk 0:01:31.5]} 23. d6 {[%clk 0:01:04.1]} 23... exd6
{[%clk 0:01:25.1]} 24. Qxf6 {[%clk 0:01:03.1]} 24... dxc5 {[%clk 0:01:04.4]} 25.
Bxf7+ {[%clk 0:01:01]} 25... Kf8 {[%clk 0:01:03.8]} 26. Bxg6+ {[%clk 0:01:01.2]}
1-0

[Event "*** Titled Tuesday Blitz"]
[Site "Chess.com"]
[Date "2020.04.28"]
[Round "3"]
[White "Koalaskakistis"]
[Black "manmanlai1"]
[Result "1-0"]
[WhiteElo "2521"]
[BlackElo "2296"]
[TimeControl "180+1"]
[EndTime "10:27:12 PDT"]
[Termination "Koalaskakistis won by resignation"]

1. e4 {[%clk 0:03:00.9]} 1... c5 {[%clk 0:02:52.8]} 2. Nf3 {[%clk 0:02:58.7]}
2... e6 {[%clk 0:02:53.1]} 3. g3 {[%clk 0:02:58]} 3... Nc6 {[%clk 0:02:51.7]} 4.
Bg2 {[%clk 0:02:57.6]} 4... Nf6 {[%clk 0:02:50.6]} 5. d3 {[%clk 0:02:50.3]} 5...
d5 {[%clk 0:02:47.8]} 6. Nbd2 {[%clk 0:02:50.4]} 6... Qc7 {[%clk 0:02:36.5]} 7.
O-O {[%clk 0:02:49.2]} 7... Bd6 {[%clk 0:02:34.2]} 8. Re1 {[%clk 0:02:48.7]}
8... O-O {[%clk 0:02:33.3]} 9. Qe2 {[%clk 0:02:40.9]} 9... Nd7 {[%clk
0:02:32.3]} 10. c3 {[%clk 0:02:32.5]} 10... b6 {[%clk 0:02:29.3]} 11. exd5
{[%clk 0:02:31.5]} 11... exd5 {[%clk 0:02:28.3]} 12. Ng5 {[%clk 0:02:31.5]}
12... h6 {[%clk 0:02:21.5]} 13. Nxf7 {[%clk 0:02:26.6]} 13... Rxf7 {[%clk
0:02:11.6]} 14. Bxd5 {[%clk 0:02:25.6]} 14... Nf6 {[%clk 0:02:04.1]} 15. Bxf7+
{[%clk 0:02:22.3]} 15... Qxf7 {[%clk 0:02:01.3]} 16. Ne4 {[%clk 0:02:22]} 16...
Bf8 {[%clk 0:01:57.1]} 17. Kg2 {[%clk 0:01:58.8]} 17... Bb7 {[%clk 0:01:56.3]}
18. f3 {[%clk 0:01:56.2]} 18... Rd8 {[%clk 0:01:53.4]} 19. Be3 {[%clk
0:01:49.9]} 19... Nd5 {[%clk 0:01:48.8]} 20. Bg1 {[%clk 0:01:45.3]} 20... Kh8
{[%clk 0:01:33.3]} 21. h4 {[%clk 0:01:44.7]} 21... Re8 {[%clk 0:01:20.9]} 22.
Bf2 {[%clk 0:01:40.4]} 22... Ne5 {[%clk 0:01:14.4]} 23. d4 {[%clk 0:01:27.8]}
23... cxd4 {[%clk 0:01:10.6]} 24. Bxd4 {[%clk 0:01:28.7]} 24... Ng6 {[%clk
0:01:03.6]} 25. Kg1 {[%clk 0:01:23.3]} 25... Nf6 {[%clk 0:00:51]} 26. Bxf6
{[%clk 0:01:18.8]} 26... gxf6 {[%clk 0:00:50.7]} 27. Nd6 {[%clk 0:01:18.5]}
27... Rxe2 {[%clk 0:00:49.9]} 28. Nxf7+ {[%clk 0:01:17.9]} 1-0

[Event "*** Titled Tuesday Blitz"]
[Site "Chess.com"]
[Date "2020.04.28"]
[Round "3"]
[White "IMRosen"]
[Black "Popopuiyt"]
[Result "1-0"]
[WhiteElo "2557"]
[BlackElo "2349"]
[TimeControl "180+1"]
[EndTime "10:27:15 PDT"]
[Termination "IMRosen won by resignation"]

1. d4 {[%clk 0:03:00.9]} 1... Nf6 {[%clk 0:02:59.8]} 2. Bf4 {[%clk 0:03:01.3]}
2... g6 {[%clk 0:02:59.9]} 3. Nc3 {[%clk 0:03:01.9]} 3... d5 {[%clk 0:02:59.7]}
4. e3 {[%clk 0:03:02.3]} 4... Bg7 {[%clk 0:02:59.8]} 5. h4 {[%clk 0:03:02.9]}
5... h5 {[%clk 0:03:00]} 6. Nf3 {[%clk 0:03:00.9]} 6... O-O {[%clk 0:03:00.1]}
7. Ne5 {[%clk 0:02:55.9]} 7... c5 {[%clk 0:02:59.7]} 8. dxc5 {[%clk 0:02:50.5]}
8... Qa5 {[%clk 0:02:50.3]} 9. Qd4 {[%clk 0:02:34.8]} 9... Nfd7 {[%clk
0:02:15.6]} 10. b4 {[%clk 0:02:16.3]} 10... Nxe5 {[%clk 0:02:15.7]} 11. bxa5
{[%clk 0:02:07.7]} 11... Nf3+ {[%clk 0:02:15.5]} 12. gxf3 {[%clk 0:02:07.7]}
12... Bxd4 {[%clk 0:02:16.1]} 13. exd4 {[%clk 0:02:08.3]} 13... Nc6 {[%clk
0:02:16.7]} 14. O-O-O {[%clk 0:01:35.8]} 14... Bf5 {[%clk 0:01:40.8]} 15. Bd3
{[%clk 0:01:05.1]} 15... Nxd4 {[%clk 0:01:36]} 16. Bxf5 {[%clk 0:01:03.7]} 16...
Nxf5 {[%clk 0:01:36]} 17. Rxd5 {[%clk 0:00:52.4]} 17... Rac8 {[%clk 0:01:33.2]}
18. Ne4 {[%clk 0:00:41.9]} 18... Rfd8 {[%clk 0:01:23]} 19. Rxd8+ {[%clk
0:00:32]} 19... Rxd8 {[%clk 0:01:22.9]} 20. Rd1 {[%clk 0:00:32.3]} 20... Rxd1+
{[%clk 0:01:18.8]} 21. Kxd1 {[%clk 0:00:33.2]} 21... Nxh4 {[%clk 0:01:19.1]} 22.
a6 {[%clk 0:00:31.9]} 1-0

[Event "*** Titled Tuesday Blitz"]
[Site "Chess.com"]
[Date "2020.04.28"]
[Round "3"]
[White "Vuk2000"]
[Black "Angel_Hranitel_37"]
[Result "1-0"]
[WhiteElo "2653"]
[BlackElo "2376"]
[TimeControl "180+1"]
[EndTime "10:27:17 PDT"]
[Termination "Vuk2000 won by resignation"]

1. e4 {[%clk 0:03:00.9]} 1... c5 {[%clk 0:02:59.7]} 2. Nc3 {[%clk 0:02:59.7]}
2... Nc6 {[%clk 0:02:59.2]} 3. g3 {[%clk 0:02:59.9]} 3... g6 {[%clk 0:02:59.4]}
4. Bg2 {[%clk 0:03:00.1]} 4... Bg7 {[%clk 0:03:00.3]} 5. d3 {[%clk 0:02:59.6]}
5... e5 {[%clk 0:02:59.5]} 6. Be3 {[%clk 0:02:59]} 6... d6 {[%clk 0:02:59.6]} 7.
Qd2 {[%clk 0:02:59.1]} 7... Nge7 {[%clk 0:02:59.4]} 8. Bh6 {[%clk 0:02:57.4]}
8... O-O {[%clk 0:02:59.7]} 9. h4 {[%clk 0:02:55.7]} 9... f6 {[%clk 0:03:00]}
10. Nge2 {[%clk 0:02:52.2]} 10... Rb8 {[%clk 0:02:55.2]} 11. h5 {[%clk
0:02:43.4]} 11... g5 {[%clk 0:02:55.1]} 12. Bxg7 {[%clk 0:02:43.1]} 12... Kxg7
{[%clk 0:02:55.1]} 13. h6+ {[%clk 0:02:43.4]} 13... Kh8 {[%clk 0:02:54.9]} 14.
f4 {[%clk 0:02:43.6]} 14... Ng6 {[%clk 0:02:47.2]} 15. Nd5 {[%clk 0:02:33.8]}
15... Be6 {[%clk 0:02:35.4]} 16. f5 {[%clk 0:02:33]} 16... Bxd5 {[%clk
0:02:31.2]} 17. fxg6 {[%clk 0:02:32.1]} 17... hxg6 {[%clk 0:02:21.4]} 18. exd5
{[%clk 0:02:32]} 18... Ne7 {[%clk 0:02:21.5]} 19. Nc3 {[%clk 0:02:11.3]} 19...
b5 {[%clk 0:02:13.8]} 20. Ne4 {[%clk 0:02:11]} 20... Kh7 {[%clk 0:02:12.3]} 21.
O-O-O {[%clk 0:02:07.3]} 21... Ng8 {[%clk 0:02:12.1]} 22. Rdf1 {[%clk
0:02:04.3]} 22... b4 {[%clk 0:02:08.3]} 23. Bh3 {[%clk 0:01:57.4]} 23... Nxh6
{[%clk 0:01:30.6]} 24. Be6 {[%clk 0:01:55.6]} 24... Kg7 {[%clk 0:01:31]} 25. Qh2
{[%clk 0:01:46.5]} 25... Rh8 {[%clk 0:01:31.2]} 26. Rxf6 {[%clk 0:01:45]} 26...
Qa5 {[%clk 0:00:29.4]} 27. Qxh6+ {[%clk 0:01:43.4]} 27... Rxh6 {[%clk
0:00:29.3]} 28. Rf7+ {[%clk 0:01:43.4]} 28... Kg8 {[%clk 0:00:29.8]} 29. Nf6+
{[%clk 0:01:43.2]} 1-0

[Event "*** Titled Tuesday Blitz"]
[Site "Chess.com"]
[Date "2020.04.28"]
[Round "3"]
[White "pedromartinez91"]
[Black "canhhuan"]
[Result "1-0"]
[WhiteElo "2425"]
[BlackElo "2656"]
[TimeControl "180+1"]
[EndTime "10:27:18 PDT"]
[Termination "pedromartinez91 won by resignation"]

1. e4 {[%clk 0:02:59.5]} 1... c5 {[%clk 0:02:54.8]} 2. Nf3 {[%clk 0:02:57]} 2...
d6 {[%clk 0:02:53.8]} 3. Bb5+ {[%clk 0:02:52.8]} 3... Bd7 {[%clk 0:02:52.8]} 4.
Bxd7+ {[%clk 0:02:52.8]} 4... Qxd7 {[%clk 0:02:52.3]} 5. O-O {[%clk 0:02:53.7]}
5... Nc6 {[%clk 0:02:50.7]} 6. c3 {[%clk 0:02:52.5]} 6... g6 {[%clk 0:02:46.9]}
7. d4 {[%clk 0:02:51.9]} 7... cxd4 {[%clk 0:02:45.7]} 8. cxd4 {[%clk 0:02:52.8]}
8... Bg7 {[%clk 0:02:46.1]} 9. d5 {[%clk 0:02:49.8]} 9... Ne5 {[%clk 0:02:40.7]}
10. Nxe5 {[%clk 0:02:49.2]} 10... Bxe5 {[%clk 0:02:38.6]} 11. Nc3 {[%clk
0:02:49.7]} 11... Rc8 {[%clk 0:02:37]} 12. Be3 {[%clk 0:02:44.9]} 12... a6
{[%clk 0:02:35.5]} 13. Na4 {[%clk 0:02:35.1]} 13... Qb5 {[%clk 0:02:24.1]} 14.
Rc1 {[%clk 0:02:23]} 14... Rd8 {[%clk 0:01:59.6]} 15. Bb6 {[%clk 0:02:00.3]}
15... Ra8 {[%clk 0:01:57.6]} 16. Rc7 {[%clk 0:01:54.9]} 16... Nf6 {[%clk
0:01:56.5]} 17. f4 {[%clk 0:01:43.7]} 17... Bxb2 {[%clk 0:01:54.2]} 18. Qc2
{[%clk 0:01:13.1]} 18... O-O {[%clk 0:01:52.3]} 19. Rb1 {[%clk 0:01:02.1]} 19...
Qb4 {[%clk 0:01:39.9]} 20. Rc4 {[%clk 0:00:41.9]} 20... Qa3 {[%clk 0:01:23.8]}
21. Rxb2 {[%clk 0:00:41.1]} 21... Nd7 {[%clk 0:01:08.9]} 22. Rb3 {[%clk
0:00:37.4]} 1-0

[Event "*** Titled Tuesday Blitz"]
[Site "Chess.com"]
[Date "2020.04.28"]
[Round "3"]
[White "fidezivkovic"]
[Black "Morshynska"]
[Result "1-0"]
[WhiteElo "2307"]
[BlackElo "2060"]
[TimeControl "180+1"]
[EndTime "10:27:19 PDT"]
[Termination "fidezivkovic won by resignation"]

1. e4 {[%clk 0:03:00.9]} 1... c5 {[%clk 0:02:56.9]} 2. Nc3 {[%clk 0:03:00.2]}
2... Nc6 {[%clk 0:02:56.2]} 3. f4 {[%clk 0:02:58.2]} 3... d6 {[%clk 0:02:55.3]}
4. Nf3 {[%clk 0:02:57.1]} 4... g6 {[%clk 0:02:53.7]} 5. Bb5 {[%clk 0:02:56.1]}
5... Bd7 {[%clk 0:02:51.7]} 6. O-O {[%clk 0:02:55.4]} 6... Nd4 {[%clk
0:02:49.2]} 7. Bc4 {[%clk 0:02:54.3]} 7... Bg7 {[%clk 0:02:43.3]} 8. d3 {[%clk
0:02:48.9]} 8... b5 {[%clk 0:02:28.3]} 9. Bd5 {[%clk 0:02:46.1]} 9... Rb8 {[%clk
0:02:25.4]} 10. Nxd4 {[%clk 0:02:44.6]} 10... cxd4 {[%clk 0:02:12]} 11. Ne2
{[%clk 0:02:43.2]} 11... e6 {[%clk 0:02:11.9]} 12. Bb3 {[%clk 0:02:41.9]} 12...
Ne7 {[%clk 0:02:04.8]} 13. Qe1 {[%clk 0:02:38.8]} 13... Nc6 {[%clk 0:01:59.5]}
14. f5 {[%clk 0:02:32]} 14... Qe7 {[%clk 0:01:31.3]} 15. Nf4 {[%clk 0:02:20]}
15... a5 {[%clk 0:01:18.6]} 16. a4 {[%clk 0:02:07.3]} 16... b4 {[%clk
0:01:06.7]} 17. Qg3 {[%clk 0:02:00.6]} 17... O-O {[%clk 0:00:49]} 18. Nh5 {[%clk
0:01:20.9]} 18... gxh5 {[%clk 0:00:27]} 19. f6 {[%clk 0:01:19.5]} 1-0

[Event "*** Titled Tuesday Blitz"]
[Site "Chess.com"]
[Date "2020.04.28"]
[Round "3"]
[White "IlzeBerzina"]
[Black "karwowskikacper"]
[Result "1-0"]
[WhiteElo "2165"]
[BlackElo "2331"]
[TimeControl "180+1"]
[EndTime "10:27:20 PDT"]
[Termination "IlzeBerzina won by checkmate"]

1. e4 {[%clk 0:03:00.9]} 1... c5 {[%clk 0:03:00.4]} 2. Nf3 {[%clk 0:03:00.3]}
2... e6 {[%clk 0:03:00.7]} 3. c4 {[%clk 0:02:59.7]} 3... Nc6 {[%clk 0:03:00.7]}
4. Nc3 {[%clk 0:02:59.6]} 4... Nge7 {[%clk 0:02:55.2]} 5. Be2 {[%clk 0:02:57]}
5... g6 {[%clk 0:02:55.1]} 6. d4 {[%clk 0:02:54.7]} 6... cxd4 {[%clk 0:02:54.2]}
7. Nxd4 {[%clk 0:02:54.6]} 7... Bg7 {[%clk 0:02:45.9]} 8. Ndb5 {[%clk
0:02:46.4]} 8... O-O {[%clk 0:02:34.9]} 9. O-O {[%clk 0:02:37.3]} 9... a6 {[%clk
0:02:25]} 10. Nd6 {[%clk 0:02:35.6]} 10... Nd4 {[%clk 0:02:24.8]} 11. Be3 {[%clk
0:02:25.2]} 11... Nec6 {[%clk 0:02:22.3]} 12. f4 {[%clk 0:02:18]} 12... Qc7
{[%clk 0:02:15.8]} 13. e5 {[%clk 0:02:16.3]} 13... Nxe2+ {[%clk 0:02:15.1]} 14.
Qxe2 {[%clk 0:02:15.2]} 14... f6 {[%clk 0:02:16]} 15. Nce4 {[%clk 0:01:57]}
15... fxe5 {[%clk 0:01:52.4]} 16. fxe5 {[%clk 0:01:56.9]} 16... Nxe5 {[%clk
0:01:50.7]} 17. Rxf8+ {[%clk 0:01:50.7]} 17... Bxf8 {[%clk 0:01:51.6]} 18. c5
{[%clk 0:01:30.4]} 18... Bxd6 {[%clk 0:01:36.4]} 19. Nxd6 {[%clk 0:01:26]} 19...
b6 {[%clk 0:00:49.4]} 20. Bd4 {[%clk 0:01:23.5]} 20... Nc6 {[%clk 0:00:42.2]}
21. Qf3 {[%clk 0:01:16.3]} 21... bxc5 {[%clk 0:00:23.8]} 22. Qf7# {[%clk
0:01:15.6]} 1-0

[Event "*** Titled Tuesday Blitz"]
[Site "Chess.com"]
[Date "2020.04.28"]
[Round "3"]
[White "harkerchess"]
[Black "BikingBrian"]
[Result "0-1"]
[WhiteElo "2002"]
[BlackElo "2297"]
[TimeControl "180+1"]
[EndTime "10:27:20 PDT"]
[Termination "BikingBrian won by checkmate"]

1. d4 {[%clk 0:03:00.9]} 1... Nf6 {[%clk 0:02:59.2]} 2. Bg5 {[%clk 0:02:59.7]}
2... c5 {[%clk 0:02:58]} 3. d5 {[%clk 0:02:58.6]} 3... Ne4 {[%clk 0:02:57.3]} 4.
Bf4 {[%clk 0:02:58.1]} 4... e6 {[%clk 0:02:57.8]} 5. f3 {[%clk 0:02:55.6]} 5...
Bd6 {[%clk 0:02:57.8]} 6. Bxd6 {[%clk 0:02:53.6]} 6... Nxd6 {[%clk 0:02:58.7]}
7. e4 {[%clk 0:02:53.3]} 7... e5 {[%clk 0:02:59]} 8. Nd2 {[%clk 0:02:48.8]} 8...
O-O {[%clk 0:02:57.1]} 9. a4 {[%clk 0:02:48.1]} 9... f5 {[%clk 0:02:56.6]} 10.
Bd3 {[%clk 0:02:31.9]} 10... c4 {[%clk 0:02:47.4]} 11. Bxc4 {[%clk 0:02:00.4]}
11... fxe4 {[%clk 0:02:35.7]} 12. fxe4 {[%clk 0:01:36.7]} 12... Nxc4 {[%clk
0:02:35.2]} 13. Nxc4 {[%clk 0:01:31.5]} 13... Qh4+ {[%clk 0:02:33.9]} 14. Ke2
{[%clk 0:01:15.4]} 14... Qxe4+ {[%clk 0:02:33.6]} 15. Ne3 {[%clk 0:01:15.5]}
15... d6 {[%clk 0:02:30.6]} 16. h3 {[%clk 0:01:10.5]} 16... Nd7 {[%clk 0:02:21]}
17. Qd3 {[%clk 0:01:03.7]} 17... Nc5 {[%clk 0:02:16.3]} 18. Qxe4 {[%clk
0:01:02.9]} 18... Nxe4 {[%clk 0:02:17.2]} 19. Nf3 {[%clk 0:00:47.4]} 19... Ng3+
{[%clk 0:02:16.8]} 20. Kd2 {[%clk 0:00:38.5]} 20... Nxh1 {[%clk 0:02:17.7]} 21.
Rxh1 {[%clk 0:00:35.3]} 21... Bd7 {[%clk 0:02:17.5]} 22. b3 {[%clk 0:00:30.7]}
22... b5 {[%clk 0:02:16.7]} 23. axb5 {[%clk 0:00:29.4]} 23... Bxb5 {[%clk
0:02:17.2]} 24. c4 {[%clk 0:00:28.8]} 24... Bd7 {[%clk 0:02:15.8]} 25. Ke2
{[%clk 0:00:25.4]} 25... Rfb8 {[%clk 0:02:14.9]} 26. Nd2 {[%clk 0:00:22.6]}
26... a5 {[%clk 0:02:14.6]} 27. Rf1 {[%clk 0:00:18.1]} 27... a4 {[%clk
0:02:13.5]} 28. bxa4 {[%clk 0:00:18.9]} 28... Rxa4 {[%clk 0:02:12.6]} 29. Rc1
{[%clk 0:00:17.5]} 29... Ra2 {[%clk 0:02:11.8]} 30. Rd1 {[%clk 0:00:17.3]} 30...
Rbb2 {[%clk 0:02:10.2]} 31. Ke1 {[%clk 0:00:17.3]} 31... Ba4 {[%clk 0:02:08.6]}
32. Rb1 {[%clk 0:00:12.3]} 32... Rxd2 {[%clk 0:02:06]} 33. Rb8+ {[%clk
0:00:11.2]} 33... Kf7 {[%clk 0:02:06.1]} 34. Rb7+ {[%clk 0:00:12.1]} 34... Kg6
{[%clk 0:02:05.7]} 35. Rb6 {[%clk 0:00:10.3]} 35... Rdb2 {[%clk 0:02:01.6]} 36.
Rxd6+ {[%clk 0:00:09.7]} 36... Kf7 {[%clk 0:02:01.2]} 37. Re6 {[%clk 0:00:06]}
37... Rb1+ {[%clk 0:02:00.6]} 38. Nd1 {[%clk 0:00:06.3]} 38... Rxd1# {[%clk
0:02:00.8]} 0-1